fUSD/lending_fUSD_20240318
["ID","MTS","AMOUNT","RATE_DAILY","PERIOD"]
[319496190,1710801499402,-500.0,0.00022739,2]
[319496191,1710801499426,-500.0,0.00022739,2]
[319496192,1710801499449,-500.0,0.00022739,2]
[319496193,1710801499472,-3033.01,0.00022739,2]
[319496194,1710801499497,-500.0,0.00022739,2]
[319496195,1710801499521,-500.0,0.00022739,2]
[319496196,1710801499547,-1975.39,0.00022739,2]
[319496197,1710801499572,-500.0,0.00022739,2]
[319496198,1710801499595,-741.46,0.00022739,2]
[319496199,1710801499771,-1339.38,0.00022739,2]
[319496200,1710801499798,-500.0,0.00022739,2]
[319496201,1710801499824,-2523.93,0.00022739,2]
[319496202,1710801499849,-641.13,0.00022739,2]
[319496203,1710801499874,-500.0,0.00022739,2]
[319496204,1710801499902,-1219.93,0.00022739,2]
[319496205,1710801499926,-1679.61,0.00022739,2]
[319496206,1710801499949,-826.95,0.00022739,2]
[319496207,1710801499972,-500.0,0.00022739,2]
[319496208,1710801499995,-3302.65,0.00022739,2]
[319496209,1710801500019,-500.0,0.00022739,2]
[319496210,1710801500044,-500.0,0.00022739,2]
[319496211,1710801500069,-500.0,0.00022739,2]
[319496212,1710801500094,-794.16,0.00022739,2]
[319496213,1710801500119,-314.53,0.00022739,2]
[319496214,1710801500150,-1882.96,0.00022739,2]
[319496215,1710801500176,-3607.26,0.00022739,2]
[319496216,1710801500200,-537.885341,0.00022739,2]
[319496217,1710801500224,-2869.72,0.00022739,2]
[319496218,1710801500248,-500.0,0.00022739,2]
[319496219,1710801500272,-769.85,0.00022739,2]
[319496220,1710801500297,-983.25,0.00022739,2]
[319496221,1710801500321,-500.0,0.00022739,2]
[319496222,1710801500346,-500.0,0.00022739,2]
[319496223,1710801500370,-500.0,0.00022739,2]
[319496224,1710801500399,-500.0,0.00022739,2]
[319496225,1710801500424,-500.0,0.00022739,2]
[319496226,1710801500450,-1188.81,0.00022739,2]
[319496227,1710801500475,-500.0,0.00022739,2]
[319496228,1710801500499,-528.90721896,0.00022739,2]
[319496229,1710801500523,-500.0,0.00022739,2]
[319496230,1710801500546,-1417.26,0.00022739,2]
[319496231,1710801500571,-500.0,0.00022739,2]
[319496232,1710801500605,-2122.22,0.00022739,2]
[319496233,1710801500672,-500.0,0.00022739,2]
[319496234,1710801500708,-1018.71,0.00022739,2]
[319496235,1710801500738,-500.0,0.00022739,2]
[319496236,1710801500765,-781.25,0.00022739,2]
[319496237,1710801500792,-500.0,0.00022739,2]
[319496238,1710801500817,-500.0,0.00022739,2]
[319496239,1710801500843,-569.49,0.00022739,2]
[319496240,1710801500868,-1183.77,0.00022739,2]
[319496241,1710801500894,-500.0,0.00022739,2]
[319496242,1710801500927,-807.78,0.00022739,2]
[319496243,1710801500953,-500.0,0.00022739,2]
[319496244,1710801500979,-500.0,0.00022739,2]
[319496245,1710801501005,-500.0,0.00022739,2]
[319496246,1710801501030,-500.0,0.00022739,2]
[319496247,1710801501055,-500.0,0.00022739,2]
[319496248,1710801501083,-500.0,0.00022739,2]
[319496249,1710801501111,-500.0,0.00022739,2]
[319496250,1710801501141,-500.0,0.00022739,2]
[319496251,1710801501167,-500.0,0.00022739,2]
[319496252,1710801501193,-1780.72,0.00022739,2]
[319496253,1710801501217,-1006.2,0.00022739,2]
[319496254,1710801501242,-500.0,0.00022739,2]
[319496255,1710801501267,-500.0,0.00022739,2]
[319496256,1710801501291,-500.0,0.00022739,2]
[319496257,1710801501318,-558.03,0.00022739,2]
[319496258,1710801501342,-256.53,0.00022739,2]
[319496259,1710801501367,-1390.6,0.00022739,2]
[319496260,1710801501394,-500.0,0.00022739,2]
[319496261,1710801501417,-1452.64,0.00022739,2]
[319496262,1710801501441,-500.0,0.00022739,2]
[319496263,1710801501464,-500.0,0.00022739,2]
[319496264,1710801501487,-500.0,0.00022739,2]
[319496265,1710801501510,-500.0,0.00022739,2]
[319496266,1710801501533,-2348.83,0.00022739,2]
[319496267,1710801501561,-500.0,0.00022739,2]
[319496268,1710801501585,-500.0,0.00022739,2]
[319496269,1710801501616,-500.0,0.00022739,2]
[319496270,1710801501643,-883.91,0.00022739,2]
[319496271,1710801501670,-500.0,0.00022739,2]
[319496272,1710801501696,-500.0,0.00022739,2]
[319496273,1710801501722,-500.0,0.00022739,2]
[319496274,1710801501747,-500.0,0.00022739,2]
[319496275,1710801501770,-945.54,0.00022739,2]
[319496276,1710801501795,-826.45,0.00022739,2]
[319496277,1710801501821,-500.0,0.00022739,2]
[319496278,1710801501846,-500.0,0.00022739,2]
[319496279,1710801501870,-500.0,0.00022739,2]
[319496280,1710801501898,-396.11,0.00022831,2]
[319496281,1710801501922,-151.05666748,0.00022913,2]
[319496282,1710801501946,-150.99,0.0002292,2]
[319496283,1710801501971,-306.0676328,0.00023,2]
[319496284,1710801501996,-500.0,0.00023012,2]
[319496285,1710801502021,-500.0,0.00023012,2]
[319496286,1710801502047,-565.93,0.00023012,2]
[319496287,1710801502073,-500.0,0.00023012,2]
[319496288,1710801502098,-574.97,0.00023012,2]
[319496289,1710801502122,-500.0,0.00023012,2]
[319496290,1710801502149,-2945.07,0.00023012,2]
[319496291,1710801502174,-500.0,0.00023012,2]
[319496292,1710801502197,-500.0,0.00023012,2]
[319496293,1710801502219,-336.87,0.00023012,2]
[319496294,1710801502241,-500.0,0.00023012,2]
[319496295,1710801502265,-839.75,0.00023012,2]
[319496296,1710801502289,-788.14,0.00023012,2]
[319496297,1710801502312,-815.54,0.00023012,2]
[319496298,1710801502335,-3447.08,0.00023012,2]
[319496299,1710801502359,-1456.55,0.00023012,2]
[319496300,1710801502384,-7984.72,0.00023012,2]
[319496301,1710801502408,-523.4,0.00023013,2]
[319496302,1710801502432,-572.66,0.00023013,2]
[319496303,1710801502609,-1533.64,0.00023013,2]
[319496304,1710801502638,-500.0,0.00023013,2]
[319496305,1710801502664,-989.36,0.00023013,2]
[319496306,1710801502690,-1069.34,0.00023013,2]
[319496307,1710801502715,-500.0,0.00023013,2]
[319496308,1710801502741,-686.39,0.00023013,2]
[319496309,1710801502765,-1396.55,0.00023013,2]
[319496310,1710801502789,-500.0,0.00023013,2]
[319496311,1710801502814,-500.0,0.00023013,2]
[319496312,1710801502839,-610.81,0.00023013,2]
[319496313,1710801502863,-500.0,0.00023013,2]
[319496314,1710801502890,-500.0,0.00023013,2]
[319496315,1710801502915,-627.4105396,0.00023013,2]
[319496316,1710801502940,-807.02,0.00023013,2]
[319496317,1710801502963,-1025.84,0.00023013,2]
[319496318,1710801502987,-500.0,0.00023013,2]
[319496319,1710801503010,-717.19,0.00023013,2]
[319496320,1710801503034,-1632.41,0.00023013,2]
[319496321,1710801503058,-763.85,0.00023013,2]
[319496322,1710801503085,-150.0,0.00023013,2]
[319496323,1710801503110,-500.0,0.00023013,2]
[319496324,1710801503137,-1011.43,0.00023013,2]
[319496325,1710801503163,-1273.81,0.00023013,2]
[319496326,1710801503188,-511.51,0.00023013,2]
[319496327,1710801503212,-500.0,0.00023013,2]
[319496328,1710801503241,-500.0,0.00023013,2]
[319496329,1710801503267,-268.31051065,0.00023013,2]
[319496330,1710801503290,-500.0,0.00023013,2]
[319496331,1710801503317,-776.97,0.00023013,2]
[319496332,1710801503342,-500.0,0.00023013,2]
[319496333,1710801503368,-500.0,0.00023013,2]
[319496334,1710801503396,-500.0,0.00023013,2]
[319496335,1710801503421,-500.0,0.00023013,2]
[319496336,1710801503444,-500.0,0.00023013,2]
[319496337,1710801503471,-500.0,0.00023013,2]
[319496338,1710801503497,-1785.78,0.00023013,2]
[319496339,1710801503521,-394.29332822,0.00023013,2]
[319496340,1710801503544,-500.0,0.00023013,2]
[319496341,1710801503568,-500.0,0.00023013,2]
[319496342,1710801503591,-567.76,0.00023013,2]
[319496343,1710801503615,-500.0,0.00023013,2]
[319496344,1710801503640,-630.8,0.00023013,2]
[319496345,1710801503669,-750.05,0.00023013,2]
[319496346,1710801503694,-500.0,0.00023013,2]
[319496347,1710801503718,-700.3,0.00023013,2]
[319496348,1710801503741,-500.0,0.00023013,2]
[319496349,1710801503765,-500.0,0.00023013,2]
[319496350,1710801503788,-500.0,0.00023013,2]
[319496351,1710801503814,-500.0,0.00023013,2]
[319496352,1710801503839,-500.0,0.00023013,2]
[319496353,1710801503863,-500.0,0.00023013,2]
[319496354,1710801503888,-771.5,0.00023013,2]
[319496355,1710801503912,-500.0,0.00023013,2]
[319496356,1710801503936,-500.0,0.00023013,2]
[319496357,1710801503959,-816.17,0.00023013,2]
[319496358,1710801503983,-500.0,0.00023013,2]
[319496359,1710801504008,-761.47,0.00023013,2]
[319496360,1710801504032,-500.0,0.00023013,2]
[319496361,1710801504055,-500.0,0.00023013,2]
[319496362,1710801504084,-556.75,0.00023013,2]
[319496363,1710801504108,-1208.26,0.00023013,2]
[319496364,1710801504132,-500.0,0.00023013,2]
[319496365,1710801504155,-500.0,0.00023013,2]
[319496366,1710801504179,-500.0,0.00023013,2]
[319496367,1710801504203,-3033.01,0.00023013,2]
[319496368,1710801504226,-500.0,0.00023013,2]
[319496369,1710801504248,-500.0,0.00023013,2]
[319496370,1710801504271,-1975.39,0.00023013,2]
[319496371,1710801504294,-500.0,0.00023013,2]
[319496372,1710801504317,-741.46,0.00023013,2]
[319496373,1710801504340,-1339.38,0.00023013,2]
[319496374,1710801504362,-500.0,0.00023013,2]
[319496375,1710801504395,-2523.93,0.00023013,2]
[319496376,1710801504442,-641.13,0.00023013,2]
[319496377,1710801504465,-385.46404128,0.00023013,2]
[319496378,1710801504489,-1219.93,0.00023013,2]
[319496379,1710801504512,-1679.61,0.00023013,2]
[319496380,1710801504536,-826.95,0.00023013,2]
[319496381,1710801504558,-500.0,0.00023013,2]
[319496382,1710801504581,-3302.65,0.00023013,2]
[319496383,1710801504603,-500.0,0.00023013,2]
[319496384,1710801504626,-500.0,0.00023013,2]
[319496385,1710801504651,-500.0,0.00023013,2]
[319496386,1710801504675,-794.16,0.00023013,2]
[319496387,1710801504698,-1882.96,0.00023013,2]
[319496388,1710801504722,-3607.26,0.00023013,2]
[319496389,1710801504745,-2869.72,0.00023013,2]
[319496390,1710801504769,-769.85,0.00023013,2]
[319496391,1710801504792,-500.0,0.00023013,2]
[319496392,1710801504816,-983.25,0.00023013,2]
[319496393,1710801504839,-500.0,0.00023013,2]
[319496394,1710801504863,-500.0,0.00023013,2]
[319496395,1710801504890,-503.28740692,0.00023013,2]
[319496396,1710801504914,-500.0,0.00023013,2]
[319496397,1710801504937,-500.0,0.00023013,2]
[319496398,1710801504961,-1188.81,0.00023013,2]
[319496399,1710801504984,-500.0,0.00023013,2]
[319496400,1710801505007,-500.0,0.00023013,2]
[319496401,1710801505031,-1417.26,0.00023013,2]
[319496402,1710801505058,-500.0,0.00023013,2]
[319496403,1710801505085,-2122.22,0.00023013,2]
[319496404,1710801505108,-500.0,0.00023013,2]
[319496405,1710801505135,-1018.71,0.00023013,2]
[319496406,1710801505161,-500.0,0.00023013,2]
[319496407,1710801505326,-781.25,0.00023013,2]
[319496408,1710801505349,-500.0,0.00023013,2]
[319496409,1710801505371,-500.0,0.00023013,2]
[319496410,1710801505397,-569.49,0.00023013,2]
[319496411,1710801505420,-1183.77,0.00023013,2]
[319496412,1710801505443,-500.0,0.00023013,2]
[319496413,1710801505466,-807.78,0.00023013,2]
[319496414,1710801505489,-500.0,0.00023013,2]
[319496415,1710801505512,-500.0,0.00023013,2]
[319496416,1710801505535,-500.0,0.00023013,2]
[319496417,1710801505558,-500.0,0.00023013,2]
[319496418,1710801505581,-500.0,0.00023013,2]
[319496419,1710801505604,-500.0,0.00023013,2]
[319496420,1710801505627,-500.0,0.00023013,2]
[319496421,1710801505655,-500.0,0.00023013,2]
[319496422,1710801505678,-500.0,0.00023013,2]
[319496423,1710801505702,-1780.72,0.00023013,2]
[319496424,1710801505725,-1006.2,0.00023013,2]
[319496425,1710801505750,-500.0,0.00023013,2]
[319496426,1710801505773,-500.0,0.00023013,2]
[319496427,1710801505797,-500.0,0.00023013,2]
[319496428,1710801505822,-558.03,0.00023013,2]
[319496429,1710801505845,-1390.6,0.00023013,2]
[319496430,1710801505868,-500.0,0.00023013,2]
[319496431,1710801505893,-1452.64,0.00023013,2]
[319496432,1710801505917,-500.0,0.00023013,2]
[319496433,1710801505939,-387.9747941,0.00023013,2]
[319496434,1710801505962,-500.0,0.00023013,2]
[319496435,1710801505985,-500.0,0.00023013,2]
[319496436,1710801506008,-2348.83,0.00023013,2]
[319496437,1710801506031,-500.0,0.00023013,2]
[319496438,1710801506055,-500.0,0.00023013,2]
[319496439,1710801506084,-500.0,0.00023013,2]
[319496440,1710801506109,-883.91,0.00023013,2]
[319496441,1710801506140,-500.0,0.00023013,2]
[319496442,1710801506165,-500.0,0.00023013,2]
[319496443,1710801506191,-500.0,0.00023013,2]
[319496444,1710801506215,-500.0,0.00023013,2]
[319496445,1710801506238,-945.54,0.00023013,2]
[319496446,1710801506261,-826.45,0.00023013,2]
[319496447,1710801506285,-226.0,0.00023013,2]
[319496448,1710801506309,-500.0,0.00023013,2]
[319496449,1710801506331,-500.0,0.00023013,2]
[319496450,1710801506354,-500.0,0.00023013,2]
[319496451,1710801506376,-500.0,0.00023286,2]
[319496452,1710801506402,-500.0,0.00023286,2]
[319496453,1710801506424,-565.93,0.00023286,2]
[319496454,1710801506447,-500.0,0.00023286,2]
[319496455,1710801506470,-574.97,0.00023286,2]
[319496456,1710801506494,-500.0,0.00023286,2]
[319496457,1710801506517,-2945.07,0.00023286,2]
[319496458,1710801506542,-500.0,0.00023286,2]
[319496459,1710801506566,-500.0,0.00023286,2]
[319496460,1710801506593,-500.0,0.00023286,2]
[319496461,1710801506618,-839.75,0.00023286,2]
[319496462,1710801506644,-788.14,0.00023286,2]
[319496463,1710801506670,-815.54,0.00023286,2]
[319496464,1710801506693,-3447.08,0.00023286,2]
[319496465,1710801506716,-1456.55,0.00023286,2]
[319496466,1710801506739,-7984.72,0.00023286,2]
[319496467,1710801506762,-523.4,0.00023287,2]
[319496468,1710801506785,-572.66,0.00023287,2]
[319496469,1710801506813,-1533.64,0.00023287,2]
[319496470,1710801506837,-500.0,0.00023287,2]
[319496471,1710801506860,-989.36,0.00023287,2]
[319496472,1710801506885,-1069.34,0.00023287,2]
[319496473,1710801506909,-500.0,0.00023287,2]
[319496474,1710801506933,-686.39,0.00023287,2]
[319496475,1710801506956,-1396.55,0.00023287,2]
[319496476,1710801506979,-500.0,0.00023287,2]
[319496477,1710801507003,-610.81,0.00023287,2]
[319496478,1710801507026,-500.0,0.00023287,2]
[319496479,1710801507049,-807.02,0.00023287,2]
[319496480,1710801507074,-1025.84,0.00023287,2]
[319496481,1710801507097,-500.0,0.00023287,2]
[319496482,1710801507120,-717.19,0.00023287,2]
[319496483,1710801507144,-1632.41,0.00023287,2]
[319496484,1710801507168,-763.85,0.00023287,2]
[319496485,1710801507191,-1011.43,0.00023287,2]
[319496486,1710801507217,-1273.81,0.00023287,2]
[319496487,1710801507240,-511.51,0.00023287,2]
[319496488,1710801507264,-500.0,0.00023287,2]
[319496489,1710801507286,-500.0,0.00023287,2]
[319496490,1710801507309,-776.97,0.00023287,2]
[319496491,1710801507331,-500.0,0.00023287,2]
[319496492,1710801507355,-500.0,0.00023287,2]
[319496493,1710801507379,-500.0,0.00023287,2]
[319496494,1710801507403,-500.0,0.00023287,2]
[319496495,1710801507426,-500.0,0.00023287,2]
[319496496,1710801507449,-1785.78,0.00023287,2]
[319496497,1710801507472,-640.76,0.00023287,2]
[319496498,1710801507495,-500.0,0.00023287,2]
[319496499,1710801507518,-500.0,0.00023287,2]
[319496500,1710801507546,-630.8,0.00023287,2]
[319496501,1710801507568,-750.05,0.00023287,2]
[319496502,1710801507603,-500.0,0.00023287,2]
[319496503,1710801507625,-700.3,0.00023287,2]
[319496504,1710801507654,-500.0,0.00023287,2]
[319496505,1710801507679,-500.0,0.00023287,2]
[319496506,1710801507702,-500.0,0.00023287,2]
[319496507,1710801507727,-500.0,0.00023287,2]
[319496508,1710801507750,-500.0,0.00023287,2]
[319496509,1710801507774,-771.5,0.00023287,2]
[319496510,1710801507799,-577.56843566,0.00023287,2]
[319496511,1710801507970,-500.0,0.00023287,2]
[319496512,1710801507995,-816.17,0.00023287,2]
[319496513,1710801508019,-500.0,0.00023287,2]
[319496514,1710801508044,-761.47,0.00023287,2]
[319496515,1710801508069,-500.0,0.00023287,2]
[319496516,1710801508093,-500.0,0.00023287,2]
[319496517,1710801508117,-556.75,0.00023287,2]
[319496518,1710801508142,-1208.26,0.00023287,2]
[319496519,1710801508166,-500.0,0.00023287,2]
[319496520,1710801508190,-500.0,0.00023287,2]
[319496521,1710801508213,-500.0,0.00023287,2]
[319496522,1710801508237,-3033.01,0.00023287,2]
[319496523,1710801508262,-500.0,0.00023287,2]
[319496524,1710801508287,-500.0,0.00023287,2]
[319496525,1710801508311,-1975.39,0.00023287,2]
[319496526,1710801508336,-500.0,0.00023287,2]
[319496527,1710801508360,-741.46,0.00023287,2]
[319496528,1710801508388,-1339.38,0.00023287,2]
[319496529,1710801508411,-500.0,0.00023287,2]
[319496530,1710801508436,-2523.93,0.00023287,2]
[319496531,1710801508459,-641.13,0.00023287,2]
[319496532,1710801508484,-1219.93,0.00023287,2]
[319496533,1710801508510,-1679.61,0.00023287,2]
[319496534,1710801508536,-826.95,0.00023287,2]
[319496535,1710801508562,-500.0,0.00023287,2]
[319496536,1710801508590,-3302.65,0.00023287,2]
[319496537,1710801508616,-500.0,0.00023287,2]
[319496538,1710801508646,-500.0,0.00023287,2]
[319496539,1710801508672,-500.0,0.00023287,2]
[319496540,1710801508697,-794.16,0.00023287,2]
[319496541,1710801508722,-1882.96,0.00023287,2]
[319496542,1710801508746,-3607.26,0.00023287,2]
[319496543,1710801508772,-2869.72,0.00023287,2]
[319496544,1710801508796,-769.85,0.00023287,2]
[319496545,1710801508820,-500.0,0.00023287,2]
[319496546,1710801508843,-983.25,0.00023287,2]
[319496547,1710801508866,-500.0,0.00023287,2]
[319496548,1710801508893,-500.0,0.00023287,2]
[319496549,1710801508918,-500.0,0.00023287,2]
[319496550,1710801508944,-500.0,0.00023287,2]
[319496551,1710801508970,-1188.81,0.00023287,2]
[319496552,1710801508994,-590.84,0.00023287,2]
[319496553,1710801509018,-500.0,0.00023287,2]
[319496554,1710801509042,-1417.26,0.00023287,2]
[319496555,1710801509066,-500.0,0.00023287,2]
[319496556,1710801509090,-2122.22,0.00023287,2]
[319496557,1710801509115,-500.0,0.00023287,2]
[319496558,1710801509143,-1018.71,0.00023287,2]
[319496559,1710801509167,-500.0,0.00023287,2]
[319496560,1710801509192,-781.25,0.00023287,2]
[319496561,1710801509215,-500.0,0.00023287,2]
[319496562,1710801509239,-500.0,0.00023287,2]
[319496563,1710801509263,-569.49,0.00023287,2]
[319496564,1710801509287,-1183.77,0.00023287,2]
[319496565,1710801509311,-500.0,0.00023287,2]
[319496566,1710801509335,-807.78,0.00023287,2]
[319496567,1710801509359,-500.0,0.00023287,2]
[319496568,1710801509385,-500.0,0.00023287,2]
[319496569,1710801509409,-500.0,0.00023287,2]
[319496570,1710801509433,-500.0,0.00023287,2]
[319496571,1710801509459,-500.0,0.00023287,2]
[319496572,1710801509484,-500.0,0.00023287,2]
[319496573,1710801509508,-500.0,0.00023287,2]
[319496574,1710801509533,-500.0,0.00023287,2]
[319496575,1710801509558,-500.0,0.00023287,2]
[319496576,1710801509583,-1780.72,0.00023287,2]
[319496577,1710801509607,-1006.2,0.00023287,2]
[319496578,1710801509633,-500.0,0.00023287,2]
[319496579,1710801509657,-502.25,0.00023287,2]
[319496580,1710801509681,-500.0,0.00023287,2]
[319496581,1710801509707,-558.03,0.00023287,2]
[319496582,1710801509731,-1390.6,0.00023287,2]
[319496583,1710801509755,-500.0,0.00023287,2]
[319496584,1710801509778,-1452.64,0.00023287,2]
[319496585,1710801509802,-500.0,0.00023287,2]
[319496586,1710801509825,-500.0,0.00023287,2]
[319496587,1710801509849,-500.0,0.00023287,2]
[319496588,1710801509873,-2348.83,0.00023287,2]
[319496589,1710801509898,-500.0,0.00023287,2]
[319496590,1710801509922,-500.0,0.00023287,2]
[319496591,1710801509945,-500.0,0.00023287,2]
[319496592,1710801509969,-883.91,0.00023287,2]
[319496593,1710801509993,-277.9,0.00023287,2]
[319496594,1710801510018,-500.0,0.00023287,2]
[319496595,1710801510043,-500.0,0.00023287,2]
[319496596,1710801510068,-500.0,0.00023287,2]
[319496597,1710801510091,-945.54,0.00023287,2]
[319496598,1710801510116,-826.45,0.00023287,2]
[319496599,1710801510143,-500.0,0.00023287,2]
[319496600,1710801510168,-500.0,0.00023287,2]
[319496601,1710801510194,-500.0,0.00023287,2]
[319496602,1710801510219,-155.0,0.00023288,2]
[319496603,1710801510245,-151.05666748,0.00023408,2]
[319496604,1710801510269,-500.0,0.00023457,2]
[319496605,1710801510292,-180.0,0.00023461,2]
[319496606,1710801510315,-1919.09106593,0.0002354,2]
[319496607,1710801510339,-500.0,0.0002356,2]
[319496608,1710801510362,-500.0,0.0002356,2]
[319496609,1710801510386,-565.93,0.0002356,2]
[319496610,1710801510409,-490.12,0.0002356,2]
[319496611,1710801510433,-574.97,0.0002356,2]
[319496612,1710801510457,-500.0,0.0002356,2]
[319496613,1710801510486,-2945.07,0.0002356,2]
[319496614,1710801510510,-500.0,0.0002356,2]
[319496615,1710801510680,-500.0,0.0002356,2]
[319496616,1710801510705,-500.0,0.0002356,2]
[319496617,1710801510730,-839.75,0.0002356,2]
[319496618,1710801510767,-788.14,0.0002356,2]
[319496619,1710801510795,-815.54,0.0002356,2]
[319496620,1710801510821,-3447.08,0.0002356,2]
[319496621,1710801510848,-1456.55,0.0002356,2]
[319496622,1710801510875,-7984.72,0.0002356,2]
[319496623,1710801510902,-523.4,0.00023561,2]
[319496624,1710801510927,-572.66,0.00023561,2]
[319496625,1710801510951,-1533.64,0.00023561,2]
[319496626,1710801510976,-500.0,0.00023561,2]
[319496627,1710801511002,-989.36,0.00023561,2]
[319496628,1710801511028,-1069.34,0.00023561,2]
[319496629,1710801511055,-500.0,0.00023561,2]
[319496630,1710801511083,-686.39,0.00023561,2]
[319496631,1710801511108,-1396.55,0.00023561,2]
[319496632,1710801511133,-500.0,0.00023561,2]
[319496633,1710801511159,-610.81,0.00023561,2]
[319496634,1710801511183,-500.0,0.00023561,2]
[319496635,1710801511208,-807.02,0.00023561,2]
[319496636,1710801511232,-1025.84,0.00023561,2]
[319496637,1710801511258,-717.19,0.00023561,2]
[319496638,1710801511282,-1632.41,0.00023561,2]
[319496639,1710801511308,-763.85,0.00023561,2]
[319496640,1710801511331,-1011.43,0.00023561,2]
[319496641,1710801511355,-1273.81,0.00023561,2]
[319496642,1710801511379,-511.51,0.00023561,2]
[319496643,1710801511407,-500.0,0.00023561,2]
[319496644,1710801511431,-500.0,0.00023561,2]
[319496645,1710801511456,-776.97,0.00023561,2]
[319496646,1710801511480,-238.6,0.00023561,2]
[319496647,1710801511504,-500.0,0.00023561,2]
[319496648,1710801511528,-500.0,0.00023561,2]
[319496649,1710801511552,-500.0,0.00023561,2]
[319496650,1710801511576,-1785.78,0.00023561,2]
[319496651,1710801511606,-500.0,0.00023561,2]
[319496652,1710801511631,-605.03,0.00023561,2]
[319496653,1710801511659,-630.8,0.00023561,2]
[319496654,1710801511683,-750.05,0.00023561,2]
[319496655,1710801511707,-700.3,0.00023561,2]
[319496656,1710801511731,-500.0,0.00023561,2]
[319496657,1710801511755,-500.0,0.00023561,2]
[319496658,1710801511779,-500.0,0.00023561,2]
[319496659,1710801511805,-500.0,0.00023561,2]
[319496660,1710801511830,-500.0,0.00023561,2]
[319496661,1710801511854,-771.5,0.00023561,2]
[319496662,1710801511879,-500.0,0.00023561,2]
[319496663,1710801511907,-816.17,0.00023561,2]
[319496664,1710801511933,-500.0,0.00023561,2]
[319496665,1710801511959,-761.47,0.00023561,2]
[319496666,1710801511984,-500.0,0.00023561,2]
[319496667,1710801512010,-500.0,0.00023561,2]
[319496668,1710801512038,-556.75,0.00023561,2]
[319496669,1710801512063,-1208.26,0.00023561,2]
[319496670,1710801512091,-500.0,0.00023561,2]
[319496671,1710801512116,-500.0,0.00023561,2]
[319496672,1710801512141,-500.0,0.00023561,2]
[319496673,1710801512167,-3033.01,0.00023561,2]
[319496674,1710801512190,-500.0,0.00023561,2]
[319496675,1710801512214,-500.0,0.00023561,2]
[319496676,1710801512239,-1975.39,0.00023561,2]
[319496677,1710801512266,-500.0,0.00023561,2]
[319496678,1710801512290,-741.46,0.00023561,2]
[319496679,1710801512313,-1339.38,0.00023561,2]
[319496680,1710801512337,-360.39966499,0.00023561,2]
[319496681,1710801512361,-2523.93,0.00023561,2]
[319496682,1710801512388,-641.13,0.00023561,2]
[319496683,1710801512415,-1219.93,0.00023561,2]
[319496684,1710801512439,-1679.61,0.00023561,2]
[319496685,1710801512463,-826.95,0.00023561,2]
[319496686,1710801512495,-500.0,0.00023561,2]
[319496687,1710801512519,-3302.65,0.00023561,2]
[319496688,1710801512543,-500.0,0.00023561,2]
[319496689,1710801512566,-500.0,0.00023561,2]